[Event "Titled Tuesday Blitz June 27 Late 2023"]
[White "Rasulov, Vugar"]
[Black "Aldokhin, Ivan"]
[WhiteFideId "13402390"]
[BlackFideId "24115720"]
[WhiteElo "2928"]
[BlackElo "2610"]
[Result "1-0"]
[Round "4"]
[TimeControl "180+2"]
[Date "2023.06.27"]
[WhiteClock "0:02:02"]
[BlackClock "0:00:06"]
[Board "31"]

1. e4 {[%clk 0:03:00]}  c5 {[%clk 0:02:58]} 2. Nf3 {[%clk 0:03:00]}  e6 {[%clk 0:02:59]} 3. b3 {[%clk 0:03:00]}  b6 {[%clk 0:02:59]} 4. Bb2 {[%clk 0:03:00]}  Bb7 {[%clk 0:03:00]} 5. Nc3 {[%clk 0:03:00]}  d6 {[%clk 0:02:57]} 6. d4 {[%clk 0:02:59]}  cxd4 {[%clk 0:02:57]} 7. Nxd4 {[%clk 0:03:00]}  Nf6 {[%clk 0:02:55]} 8. Bb5+ {[%clk 0:02:53]}  Nbd7 {[%clk 0:02:55]} 9. Qe2 {[%clk 0:02:52]}  a6 {[%clk 0:02:53]} 10. Bxd7+ {[%clk 0:02:52]}  Qxd7 {[%clk 0:02:40]} 11. O-O-O {[%clk 0:02:53]}  Qc7 {[%clk 0:02:30]} 12. g4 {[%clk 0:02:48]}  b5 {[%clk 0:02:19]} 13. a3 {[%clk 0:02:43]}  Rc8 {[%clk 0:01:56]} 14. g5 {[%clk 0:02:40]}  Nd7 {[%clk 0:01:55]} 15. h4 {[%clk 0:02:40]}  Qa5 {[%clk 0:01:38]} 16. Kb1 {[%clk 0:02:31]}  Be7 {[%clk 0:01:05]} 17. Nd5 {[%clk 0:02:29]}  Bd8 {[%clk 0:00:23]} 18. Rh3 {[%clk 0:02:17]}  O-O {[%clk 0:00:20]} 19. b4 {[%clk 0:02:07]}  Qa4 {[%clk 0:00:18]} 20. Nc3 {[%clk 0:02:07]}  Rxc3 {[%clk 0:00:18]} 21. Rxc3 {[%clk 0:02:08]}  a5 {[%clk 0:00:16]} 22. Qxb5 {[%clk 0:02:03]}  Qxb5 {[%clk 0:00:15]} 23. Nxb5 {[%clk 0:02:04]}  axb4 {[%clk 0:00:16]} 24. axb4 {[%clk 0:02:05]}  Bxe4 {[%clk 0:00:14]} 25. Nxd6 {[%clk 0:02:05]}  Bg6 {[%clk 0:00:06]} 26. Nb7 {[%clk 0:02:02]} 1-0


[Site "https://www.chess.com"]

[Event "Titled Tuesday Blitz June 27 Late 2023"]
[White "Atanasov, Anthony"]
[Black "Tari, Aryan"]
[WhiteFideId "2623897"]
[BlackFideId "1510045"]
[WhiteElo "2610"]
[BlackElo "2920"]
[Result "0-1"]
[Round "4"]
[TimeControl "180+2"]
[Date "2023.06.27"]
[WhiteClock "0:00:00"]
[BlackClock "0:00:05"]
[Board "33"]

1. e4 {[%clk 0:03:00]}  c6 {[%clk 0:02:58]} 2. d4 {[%clk 0:02:59]}  d5 {[%clk 0:02:57]} 3. exd5 {[%clk 0:02:59]}  cxd5 {[%clk 0:02:57]} 4. Bd3 {[%clk 0:03:00]}  Nf6 {[%clk 0:02:56]} 5. Bf4 {[%clk 0:02:58]}  Qb6 {[%clk 0:02:45]} 6. Nf3 {[%clk 0:02:53]}  Qxb2 {[%clk 0:02:40]} 7. Nbd2 {[%clk 0:02:51]}  Nc6 {[%clk 0:02:37]} 8. Nb3 {[%clk 0:02:45]}  Qa3 {[%clk 0:02:26]} 9. c3 {[%clk 0:02:42]}  e6 {[%clk 0:02:19]} 10. O-O {[%clk 0:02:37]}  Be7 {[%clk 0:02:19]} 11. Qe2 {[%clk 0:02:36]}  O-O {[%clk 0:02:18]} 12. Rfe1 {[%clk 0:02:35]}  a5 {[%clk 0:02:13]} 13. Ne5 {[%clk 0:02:32]}  a4 {[%clk 0:02:12]} 14. Bc1 {[%clk 0:02:19]}  Qd6 {[%clk 0:02:11]} 15. Nd2 {[%clk 0:02:18]}  Qc7 {[%clk 0:01:58]} 16. f4 {[%clk 0:02:11]}  Qa5 {[%clk 0:01:42]} 17. Ndf3 {[%clk 0:01:49]}  Qxc3 {[%clk 0:01:42]} 18. Bd2 {[%clk 0:01:50]}  Qa3 {[%clk 0:01:37]} 19. Bb5 {[%clk 0:01:40]}  Ne4 {[%clk 0:01:28]} 20. Be3 {[%clk 0:01:34]}  Nc3 {[%clk 0:01:26]} 21. Qd3 {[%clk 0:01:30]}  Nxb5 {[%clk 0:01:26]} 22. Qxb5 {[%clk 0:01:31]}  Qd6 {[%clk 0:01:07]} 23. Rac1 {[%clk 0:01:27]}  Ra6 {[%clk 0:01:00]} 24. f5 {[%clk 0:01:21]}  exf5 {[%clk 0:00:37]} 25. Bf4 {[%clk 0:01:18]}  Qb4 {[%clk 0:00:36]} 26. Qd3 {[%clk 0:01:05]}  Be6 {[%clk 0:00:34]} 27. Rb1 {[%clk 0:00:58]}  Nxe5 {[%clk 0:00:34]} 28. Nxe5 {[%clk 0:00:54]}  Qa5 {[%clk 0:00:33]} 29. Bd2 {[%clk 0:00:49]}  Qc7 {[%clk 0:00:22]} 30. Rec1 {[%clk 0:00:48]}  Qb8 {[%clk 0:00:22]} 31. Qxa6 {[%clk 0:00:40]}  bxa6 {[%clk 0:00:14]} 32. Rxb8 {[%clk 0:00:41]}  Rxb8 {[%clk 0:00:15]} 33. Nc6 {[%clk 0:00:42]}  Re8 {[%clk 0:00:11]} 34. Nxe7+ {[%clk 0:00:42]}  Rxe7 {[%clk 0:00:12]} 35. Rc6 {[%clk 0:00:37]}  h5 {[%clk 0:00:11]} 36. Kf2 {[%clk 0:00:36]}  Rb7 {[%clk 0:00:11]} 37. Bc3 {[%clk 0:00:33]}  Rb1 {[%clk 0:00:07]} 38. Rxa6 {[%clk 0:00:32]}  Rc1 {[%clk 0:00:08]} 39. Bb4 {[%clk 0:00:24]}  Rc2+ {[%clk 0:00:08]} 40. Kf3 {[%clk 0:00:25]}  Rxa2 {[%clk 0:00:07]} 41. g3 {[%clk 0:00:26]}  Rxh2 {[%clk 0:00:04]} 42. Rxa4 {[%clk 0:00:25]}  h4 {[%clk 0:00:05]} 43. gxh4 {[%clk 0:00:25]}  Rxh4 {[%clk 0:00:06]} 44. Be1 {[%clk 0:00:23]}  Re4 {[%clk 0:00:06]} 45. Bg3 {[%clk 0:00:23]}  g5 {[%clk 0:00:06]} 46. Ra8+ {[%clk 0:00:22]}  Kh7 {[%clk 0:00:06]} 47. Be5 {[%clk 0:00:20]}  g4+ {[%clk 0:00:06]} 48. Kg3 {[%clk 0:00:20]}  f4+ {[%clk 0:00:04]} 49. Kh4 {[%clk 0:00:12]}  Rxe5 {[%clk 0:00:05]} 50. dxe5 {[%clk 0:00:12]}  Kg6 {[%clk 0:00:05]} 51. Ra1 {[%clk 0:00:07]}  Kf5 {[%clk 0:00:05]} 52. Re1 {[%clk 0:00:08]}  d4 {[%clk 0:00:04]} 53. Re2 {[%clk 0:00:08]}  d3 {[%clk 0:00:04]} 54. Re1 {[%clk 0:00:08]}  Bb3 {[%clk 0:00:04]} 55. e6 {[%clk 0:00:07]}  fxe6 {[%clk 0:00:05]} 56. Rb1 {[%clk 0:00:06]}  d2 {[%clk 0:00:05]} 57. Rg1 {[%clk 0:00:00]}  d1=Q {[%clk 0:00:05]} 0-1


[Site "https://www.chess.com"]

[Event "Titled Tuesday Blitz June 27 Late 2023"]
[White "Durarbayli, Vasif"]
[Black "Isajevsky, Anton"]
[WhiteFideId "13402935"]
[BlackFideId "4142500"]
[WhiteElo "2918"]
[BlackElo "2609"]
[Result "1-0"]
[Round "4"]
[TimeControl "180+2"]
[Date "2023.06.27"]
[WhiteClock "0:00:39"]
[BlackClock "0:00:00"]
[Board "34"]

1. e4 {[%clk 0:03:00]}  c5 {[%clk 0:02:58]} 2. Nf3 {[%clk 0:03:00]}  d6 {[%clk 0:02:58]} 3. d4 {[%clk 0:03:00]}  cxd4 {[%clk 0:02:59]} 4. Nxd4 {[%clk 0:03:00]}  Nf6 {[%clk 0:02:59]} 5. Nc3 {[%clk 0:02:59]}  a6 {[%clk 0:02:59]} 6. Be2 {[%clk 0:02:56]}  e5 {[%clk 0:02:58]} 7. Nb3 {[%clk 0:02:57]}  Be6 {[%clk 0:02:53]} 8. Bg5 {[%clk 0:02:51]}  Nbd7 {[%clk 0:02:51]} 9. Qd2 {[%clk 0:02:49]}  Rc8 {[%clk 0:02:47]} 10. f3 {[%clk 0:02:43]}  Be7 {[%clk 0:02:42]} 11. h4 {[%clk 0:02:41]}  O-O {[%clk 0:02:27]} 12. g4 {[%clk 0:02:38]}  b5 {[%clk 0:02:23]} 13. O-O-O {[%clk 0:02:30]}  b4 {[%clk 0:01:54]} 14. Nd5 {[%clk 0:02:30]}  Bxd5 {[%clk 0:01:53]} 15. exd5 {[%clk 0:02:30]}  a5 {[%clk 0:01:53]} 16. Bb5 {[%clk 0:02:23]}  Qc7 {[%clk 0:01:27]} 17. Kb1 {[%clk 0:02:17]}  Nb6 {[%clk 0:00:53]} 18. Bxf6 {[%clk 0:02:05]}  Bxf6 {[%clk 0:00:54]} 19. g5 {[%clk 0:02:05]}  Be7 {[%clk 0:00:53]} 20. Nxa5 {[%clk 0:02:03]}  Nxd5 {[%clk 0:00:48]} 21. Nc6 {[%clk 0:01:56]}  Nf4 {[%clk 0:00:38]} 22. Qxb4 {[%clk 0:01:52]}  Rfe8 {[%clk 0:00:23]} 23. Rhe1 {[%clk 0:01:20]}  Bf8 {[%clk 0:00:22]} 24. Qb3 {[%clk 0:01:14]}  d5 {[%clk 0:00:18]} 25. c4 {[%clk 0:01:09]}  d4 {[%clk 0:00:05]} 26. Nxd4 {[%clk 0:01:08]}  Red8 {[%clk 0:00:04]} 27. Nc6 {[%clk 0:01:06]}  Rxd1+ {[%clk 0:00:03]} 28. Rxd1 {[%clk 0:01:07]}  Qb6 {[%clk 0:00:03]} 29. Nxe5 {[%clk 0:00:59]}  Qc5 {[%clk 0:00:02]} 30. Nd7 {[%clk 0:00:59]}  Qf2 {[%clk 0:00:01]} 31. a4 {[%clk 0:00:45]}  Ne6 {[%clk 0:00:00]} 32. a5 {[%clk 0:00:39]} 1-0


[Site "https://www.chess.com"]

[Event "Titled Tuesday Blitz June 27 Late 2023"]
[White "Muradli, Mahammad"]
[Black "Grinev, Valeriy"]
[WhiteFideId "13409301"]
[BlackFideId "14117517"]
[WhiteElo "2906"]
[BlackElo "2608"]
[Result "1-0"]
[Round "4"]
[TimeControl "180+2"]
[Date "2023.06.27"]
[WhiteClock "0:02:02"]
[BlackClock "0:01:51"]
[Board "35"]

1. c4 {[%clk 0:03:00]}  c5 {[%clk 0:02:59]} 2. g3 {[%clk 0:02:59]}  g6 {[%clk 0:02:58]} 3. Bg2 {[%clk 0:03:00]}  Bg7 {[%clk 0:02:59]} 4. Nc3 {[%clk 0:03:00]}  Nc6 {[%clk 0:03:00]} 5. b3 {[%clk 0:03:01]}  e6 {[%clk 0:02:57]} 6. Bb2 {[%clk 0:03:01]}  Nge7 {[%clk 0:02:57]} 7. Nf3 {[%clk 0:02:51]}  b6 {[%clk 0:02:55]} 8. O-O {[%clk 0:02:51]}  Bb7 {[%clk 0:02:55]} 9. d4 {[%clk 0:02:08]}  Nxd4 {[%clk 0:02:34]} 10. Nxd4 {[%clk 0:02:05]}  Bxg2 {[%clk 0:02:33]} 11. Ncb5 {[%clk 0:02:04]}  Bxf1 {[%clk 0:01:58]} 12. Nxe6 {[%clk 0:02:04]}  dxe6 {[%clk 0:01:57]} 13. Bxg7 {[%clk 0:02:02]}  Qxd1 {[%clk 0:01:51]} 14. Rxd1 {[%clk 0:02:03]}  Rg8 {[%clk 0:01:51]} 15. Nc7# {[%clk 0:02:02]} 1-0


[Site "https://www.chess.com"]

[Event "Titled Tuesday Blitz June 27 Late 2023"]
[White "MKlose11"]
[Black "Zhigalko, Sergei"]
[BlackFideId "13502956"]
[WhiteElo "2602"]
[BlackElo "2889"]
[Result "0-1"]
[Round "4"]
[TimeControl "180+2"]
[Date "2023.06.27"]
[WhiteClock "0:00:04"]
[BlackClock "0:00:07"]
[Board "37"]

1. e4 {[%clk 0:03:00]}  c5 {[%clk 0:03:00]} 2. Nc3 {[%clk 0:02:58]}  Nc6 {[%clk 0:03:00]} 3. g3 {[%clk 0:02:58]}  g6 {[%clk 0:03:00]} 4. Bg2 {[%clk 0:02:59]}  Bg7 {[%clk 0:03:01]} 5. d3 {[%clk 0:02:59]}  Rb8 {[%clk 0:03:00]} 6. Be3 {[%clk 0:02:59]}  d6 {[%clk 0:03:00]} 7. Qd2 {[%clk 0:03:00]}  b5 {[%clk 0:03:00]} 8. Nge2 {[%clk 0:02:58]}  b4 {[%clk 0:03:00]} 9. Nd1 {[%clk 0:02:58]}  a5 {[%clk 0:02:59]} 10. O-O {[%clk 0:02:57]}  a4 {[%clk 0:02:59]} 11. Rb1 {[%clk 0:02:57]}  Nd4 {[%clk 0:02:56]} 12. h3 {[%clk 0:02:48]}  b3 {[%clk 0:02:40]} 13. axb3 {[%clk 0:02:46]}  axb3 {[%clk 0:02:41]} 14. c3 {[%clk 0:02:46]}  Nc2 {[%clk 0:02:42]} 15. d4 {[%clk 0:02:03]}  Ba6 {[%clk 0:02:35]} 16. Bf3 {[%clk 0:01:55]}  Nf6 {[%clk 0:02:17]} 17. dxc5 {[%clk 0:01:49]}  dxc5 {[%clk 0:02:12]} 18. Qxd8+ {[%clk 0:01:48]}  Rxd8 {[%clk 0:02:10]} 19. Bxc5 {[%clk 0:01:44]}  Nxe4 {[%clk 0:02:10]} 20. Bxe4 {[%clk 0:01:33]}  Bxe2 {[%clk 0:02:09]} 21. Bc6+ {[%clk 0:01:33]}  Kf8 {[%clk 0:02:09]} 22. Ba4 {[%clk 0:01:22]}  Rb8 {[%clk 0:01:45]} 23. Ne3 {[%clk 0:01:19]}  Nxe3 {[%clk 0:01:37]} 24. Bxe3 {[%clk 0:01:20]}  Bxf1 {[%clk 0:01:37]} 25. Kxf1 {[%clk 0:01:14]}  h5 {[%clk 0:01:29]} 26. Bf4 {[%clk 0:01:03]}  Rb7 {[%clk 0:01:16]} 27. Ra1 {[%clk 0:00:54]}  Bf6 {[%clk 0:01:04]} 28. Ra3 {[%clk 0:00:49]}  Bxc3 {[%clk 0:01:02]} 29. bxc3 {[%clk 0:00:34]}  b2 {[%clk 0:01:03]} 30. Bc2 {[%clk 0:00:31]}  b1=Q+ {[%clk 0:01:04]} 31. Bxb1 {[%clk 0:00:31]}  Rxb1+ {[%clk 0:01:04]} 32. Kg2 {[%clk 0:00:32]}  f6 {[%clk 0:01:01]} 33. Ra7 {[%clk 0:00:24]}  Rb3 {[%clk 0:00:50]} 34. Rc7 {[%clk 0:00:20]}  g5 {[%clk 0:00:33]} 35. Be3 {[%clk 0:00:18]}  Kf7 {[%clk 0:00:33]} 36. Bc5 {[%clk 0:00:15]}  Re8 {[%clk 0:00:32]} 37. Bb4 {[%clk 0:00:15]}  Rb1 {[%clk 0:00:30]} 38. Ra7 {[%clk 0:00:13]}  Re1 {[%clk 0:00:29]} 39. Rd7 {[%clk 0:00:09]}  Kg6 {[%clk 0:00:24]} 40. g4 {[%clk 0:00:07]}  hxg4 {[%clk 0:00:22]} 41. hxg4 {[%clk 0:00:08]}  Re4 {[%clk 0:00:21]} 42. Kf3 {[%clk 0:00:08]}  Rf4+ {[%clk 0:00:17]} 43. Kg3 {[%clk 0:00:09]}  e5 {[%clk 0:00:14]} 44. Bc5 {[%clk 0:00:05]}  Rc4 {[%clk 0:00:10]} 45. Be3 {[%clk 0:00:04]}  Rxc3 {[%clk 0:00:09]} 46. Rd6 {[%clk 0:00:05]}  Rc4 {[%clk 0:00:09]} 47. Ra6 {[%clk 0:00:05]}  Rc7 {[%clk 0:00:08]} 48. Bd2 {[%clk 0:00:04]}  Rce7 {[%clk 0:00:07]} 49. Be3 {[%clk 0:00:05]}  Re6 {[%clk 0:00:08]} 50. Ra7 {[%clk 0:00:05]}  Rc8 {[%clk 0:00:07]} 51. Ra4 {[%clk 0:00:05]}  Rec6 {[%clk 0:00:06]} 52. Ra5 {[%clk 0:00:05]}  Rc4 {[%clk 0:00:06]} 53. Ra6 {[%clk 0:00:06]}  Rb4 {[%clk 0:00:06]} 54. Bd2 {[%clk 0:00:04]}  Re4 {[%clk 0:00:05]} 55. Be3 {[%clk 0:00:04]}  Rcc4 {[%clk 0:00:04]} 56. Kf3 {[%clk 0:00:03]}  Rxg4 {[%clk 0:00:04]} 57. Rc6 {[%clk 0:00:03]}  Rxc6 {[%clk 0:00:04]} 58. Kxg4 {[%clk 0:00:04]}  Rc4+ {[%clk 0:00:05]} 59. Kf3 {[%clk 0:00:04]}  f5 {[%clk 0:00:05]} 60. Kg3 {[%clk 0:00:04]}  g4 {[%clk 0:00:06]} 61. Kg2 {[%clk 0:00:04]}  f4 {[%clk 0:00:06]} 62. Ba7 {[%clk 0:00:05]}  Kf5 {[%clk 0:00:07]} 63. Bb8 {[%clk 0:00:06]}  e4 {[%clk 0:00:07]} 64. Ba7 {[%clk 0:00:06]}  Rc2 {[%clk 0:00:06]} 65. Kg1 {[%clk 0:00:05]}  Ra2 {[%clk 0:00:07]} 66. Bb6 {[%clk 0:00:05]}  g3 {[%clk 0:00:06]} 67. fxg3 {[%clk 0:00:04]}  fxg3 {[%clk 0:00:07]} 68. Kh1 {[%clk 0:00:04]}  Kg4 {[%clk 0:00:07]} 69. Bg1 {[%clk 0:00:04]}  Kf3 {[%clk 0:00:07]} 70. Bd4 {[%clk 0:00:04]}  e3 {[%clk 0:00:05]} 71. Bxe3 {[%clk 0:00:03]}  Kxe3 {[%clk 0:00:06]} 72. Kg1 {[%clk 0:00:04]}  Kf3 {[%clk 0:00:06]} 73. Kh1 {[%clk 0:00:04]}  Ra1# {[%clk 0:00:07]} 0-1


[Site "https://www.chess.com"]

[Event "Titled Tuesday Blitz June 27 Late 2023"]
[White "ATM622"]
[Black "Hansen, Eric"]
[BlackFideId "2606771"]
[WhiteElo "2596"]
[BlackElo "2873"]
[Result "0-1"]
[Round "4"]
[TimeControl "180+2"]
[Date "2023.06.27"]
[WhiteClock "0:00:16"]
[BlackClock "0:02:04"]
[Board "39"]

1. d4 {[%clk 0:02:59]}  Nf6 {[%clk 0:02:59]} 2. c4 {[%clk 0:02:59]}  e6 {[%clk 0:03:00]} 3. g3 {[%clk 0:03:00]}  Bb4+ {[%clk 0:03:00]} 4. Nd2 {[%clk 0:02:59]}  O-O {[%clk 0:03:00]} 5. Bg2 {[%clk 0:03:00]}  d5 {[%clk 0:03:00]} 6. Qc2 {[%clk 0:03:00]}  Nc6 {[%clk 0:03:00]} 7. Nf3 {[%clk 0:03:00]}  dxc4 {[%clk 0:02:57]} 8. Qxc4 {[%clk 0:03:00]}  Qd5 {[%clk 0:02:57]} 9. Qxd5 {[%clk 0:02:59]}  exd5 {[%clk 0:02:57]} 10. O-O {[%clk 0:02:59]}  Re8 {[%clk 0:02:57]} 11. e3 {[%clk 0:02:59]}  a5 {[%clk 0:02:58]} 12. a3 {[%clk 0:02:57]}  Bd6 {[%clk 0:02:58]} 13. b3 {[%clk 0:02:54]}  Bf5 {[%clk 0:02:56]} 14. Bb2 {[%clk 0:02:54]}  h6 {[%clk 0:02:56]} 15. Rac1 {[%clk 0:02:52]}  Ra6 {[%clk 0:02:55]} 16. h3 {[%clk 0:02:42]}  Nd8 {[%clk 0:02:53]} 17. Ne5 {[%clk 0:02:36]}  c6 {[%clk 0:02:54]} 18. Rfd1 {[%clk 0:02:28]}  Ne6 {[%clk 0:02:49]} 19. g4 {[%clk 0:02:22]}  Bh7 {[%clk 0:02:48]} 20. f4 {[%clk 0:02:21]}  h5 {[%clk 0:02:36]} 21. g5 {[%clk 0:02:17]}  Bxe5 {[%clk 0:02:36]} 22. dxe5 {[%clk 0:02:13]}  Nd7 {[%clk 0:02:37]} 23. h4 {[%clk 0:01:36]}  Ndc5 {[%clk 0:02:35]} 24. Bf1 {[%clk 0:01:36]}  Rb6 {[%clk 0:02:34]} 25. Rc3 {[%clk 0:01:18]}  Na4 {[%clk 0:02:34]} 26. bxa4 {[%clk 0:01:14]}  Rxb2 {[%clk 0:02:34]} 27. Rb3 {[%clk 0:01:11]}  Rxb3 {[%clk 0:02:33]} 28. Nxb3 {[%clk 0:01:10]}  Bc2 {[%clk 0:02:33]} 29. Be2 {[%clk 0:01:02]}  Bxb3 {[%clk 0:02:29]} 30. Rb1 {[%clk 0:01:02]}  Nc5 {[%clk 0:02:29]} 31. Bxh5 {[%clk 0:01:01]}  g6 {[%clk 0:02:29]} 32. Bg4 {[%clk 0:01:00]}  Bxa4 {[%clk 0:02:27]} 33. h5 {[%clk 0:00:59]}  gxh5 {[%clk 0:02:24]} 34. Bxh5 {[%clk 0:00:59]}  Kg7 {[%clk 0:02:16]} 35. Kg2 {[%clk 0:00:56]}  Bc2 {[%clk 0:02:16]} 36. Rc1 {[%clk 0:00:54]}  Nd3 {[%clk 0:02:15]} 37. Ra1 {[%clk 0:00:51]}  b5 {[%clk 0:02:15]} 38. Bg4 {[%clk 0:00:49]}  b4 {[%clk 0:02:15]} 39. Bd7 {[%clk 0:00:49]}  Re7 {[%clk 0:02:10]} 40. Bxc6 {[%clk 0:00:45]}  b3 {[%clk 0:02:10]} 41. Bxd5 {[%clk 0:00:28]}  b2 {[%clk 0:02:10]} 42. Rh1 {[%clk 0:00:28]}  Nc1 {[%clk 0:02:04]} 43. f5 {[%clk 0:00:16]}  Bxf5 {[%clk 0:02:04]} 0-1


[Site "https://www.chess.com"]

[Event "Titled Tuesday Blitz June 27 Late 2023"]
[White "Rostomyan, Mikayel"]
[Black "Harshavardhan G B"]
[WhiteFideId "13313754"]
[BlackFideId "25059009"]
[WhiteElo "2588"]
[BlackElo "2807"]
[Result "0-1"]
[Round "4"]
[TimeControl "180+2"]
[Date "2023.06.27"]
[WhiteClock "0:00:27"]
[BlackClock "0:01:17"]
[Board "42"]

1. d4 {[%clk 0:03:00]}  Nf6 {[%clk 0:02:39]} 2. Nf3 {[%clk 0:03:01]}  d5 {[%clk 0:02:36]} 3. c4 {[%clk 0:03:01]}  c6 {[%clk 0:02:31]} 4. e3 {[%clk 0:03:00]}  e6 {[%clk 0:02:31]} 5. Nc3 {[%clk 0:03:00]}  Nbd7 {[%clk 0:02:30]} 6. b3 {[%clk 0:02:55]}  Bb4 {[%clk 0:02:29]} 7. Bd2 {[%clk 0:02:55]}  Bd6 {[%clk 0:02:30]} 8. Bd3 {[%clk 0:02:54]}  O-O {[%clk 0:02:29]} 9. O-O {[%clk 0:02:54]}  b6 {[%clk 0:02:28]} 10. e4 {[%clk 0:02:54]}  dxe4 {[%clk 0:02:28]} 11. Nxe4 {[%clk 0:02:52]}  Nxe4 {[%clk 0:02:29]} 12. Bxe4 {[%clk 0:02:53]}  Bb7 {[%clk 0:02:30]} 13. Qe2 {[%clk 0:02:49]}  Nf6 {[%clk 0:02:30]} 14. Bc2 {[%clk 0:02:49]}  c5 {[%clk 0:02:29]} 15. Rad1 {[%clk 0:02:48]}  cxd4 {[%clk 0:02:28]} 16. Bg5 {[%clk 0:02:38]}  h6 {[%clk 0:02:23]} 17. Bxf6 {[%clk 0:02:27]}  Qxf6 {[%clk 0:02:23]} 18. Nxd4 {[%clk 0:02:27]}  Rad8 {[%clk 0:02:19]} 19. Be4 {[%clk 0:02:22]}  Qf4 {[%clk 0:02:10]} 20. Qh5 {[%clk 0:01:34]}  Qxe4 {[%clk 0:02:04]} 21. f3 {[%clk 0:01:32]}  Qe3+ {[%clk 0:02:04]} 22. Kh1 {[%clk 0:01:32]}  Bc5 {[%clk 0:02:01]} 23. Nb5 {[%clk 0:01:27]}  Rxd1 {[%clk 0:01:53]} 24. Rxd1 {[%clk 0:01:26]}  Qe2 {[%clk 0:01:52]} 25. Ra1 {[%clk 0:01:21]}  a6 {[%clk 0:01:50]} 26. Nc7 {[%clk 0:01:18]}  Bd4 {[%clk 0:01:49]} 27. Rb1 {[%clk 0:01:17]}  Be4 {[%clk 0:01:47]} 28. Rc1 {[%clk 0:01:08]}  Be3 {[%clk 0:01:43]} 29. Ra1 {[%clk 0:01:05]}  Bd4 {[%clk 0:01:28]} 30. Rc1 {[%clk 0:01:05]}  Qe3 {[%clk 0:01:27]} 31. Rd1 {[%clk 0:00:56]}  Bc2 {[%clk 0:01:26]} 32. Rf1 {[%clk 0:00:56]}  Qd3 {[%clk 0:01:20]} 33. Rc1 {[%clk 0:00:53]}  Bd1 {[%clk 0:01:18]} 34. h3 {[%clk 0:00:45]}  Qf1+ {[%clk 0:01:17]} 35. Kh2 {[%clk 0:00:46]}  Bg1+ {[%clk 0:01:17]} 36. Kg3 {[%clk 0:00:45]}  Bf2+ {[%clk 0:01:18]} 37. Kf4 {[%clk 0:00:27]}  Qe1 {[%clk 0:01:17]} 0-1


[Site "https://www.chess.com"]

[Event "Titled Tuesday Blitz June 27 Late 2023"]
[White "Kushko, Dmitriy"]
[Black "Sargsyan, Anna M."]
[WhiteFideId "14162261"]
[BlackFideId "13308130"]
[WhiteElo "2785"]
[BlackElo "2582"]
[Result "1-0"]
[Round "4"]
[TimeControl "180+2"]
[Date "2023.06.27"]
[WhiteClock "0:01:30"]
[BlackClock "0:01:21"]
[Board "44"]

1. f4 {[%clk 0:03:00]}  e5 {[%clk 0:02:59]} 2. fxe5 {[%clk 0:03:00]}  d6 {[%clk 0:02:59]} 3. exd6 {[%clk 0:03:01]}  Bxd6 {[%clk 0:02:59]} 4. Nf3 {[%clk 0:03:01]}  g5 {[%clk 0:02:58]} 5. g3 {[%clk 0:03:01]}  g4 {[%clk 0:02:58]} 6. Nh4 {[%clk 0:03:02]}  Ne7 {[%clk 0:02:59]} 7. Nc3 {[%clk 0:03:02]}  Ng6 {[%clk 0:02:58]} 8. Nxg6 {[%clk 0:03:02]}  hxg6 {[%clk 0:02:58]} 9. Ne4 {[%clk 0:03:03]}  Be5 {[%clk 0:02:52]} 10. c3 {[%clk 0:03:03]}  f5 {[%clk 0:02:52]} 11. Nf2 {[%clk 0:03:01]}  c5 {[%clk 0:02:50]} 12. e3 {[%clk 0:02:55]}  Nc6 {[%clk 0:02:46]} 13. d4 {[%clk 0:02:55]}  Bf6 {[%clk 0:02:44]} 14. Bg2 {[%clk 0:02:53]}  Bd7 {[%clk 0:02:40]} 15. Qb3 {[%clk 0:02:39]}  Qc7 {[%clk 0:02:27]} 16. Qd5 {[%clk 0:02:00]}  O-O-O {[%clk 0:02:14]} 17. Qxc5 {[%clk 0:02:00]}  Rde8 {[%clk 0:02:10]} 18. Bd2 {[%clk 0:01:52]}  Kb8 {[%clk 0:01:51]} 19. O-O-O {[%clk 0:01:48]}  Be7 {[%clk 0:01:51]} 20. Qc4 {[%clk 0:01:47]}  Qb6 {[%clk 0:01:51]} 21. Qb3 {[%clk 0:01:44]}  Qc7 {[%clk 0:01:50]} 22. Kb1 {[%clk 0:01:41]}  Na5 {[%clk 0:01:49]} 23. Qc2 {[%clk 0:01:38]}  Nc4 {[%clk 0:01:49]} 24. e4 {[%clk 0:01:35]}  Rc8 {[%clk 0:01:38]} 25. Bf4 {[%clk 0:01:33]}  Bd6 {[%clk 0:01:37]} 26. e5 {[%clk 0:01:34]}  Qb6 {[%clk 0:01:21]} 27. Qb3 {[%clk 0:01:30]} 1-0


[Site "https://www.chess.com"]

[Event "Titled Tuesday Blitz June 27 Late 2023"]
[White "Camacho Collados, Marcos"]
[Black "Yanchenko, Roman"]
[WhiteFideId "2266237"]
[BlackFideId "4137329"]
[WhiteElo "2571"]
[BlackElo "2762"]
[Result "1-0"]
[Round "4"]
[TimeControl "180+2"]
[Date "2023.06.27"]
[WhiteClock "0:01:33"]
[BlackClock "0:01:15"]
[Board "48"]

1. Nf3 {[%clk 0:03:00]}  d6 {[%clk 0:03:00]} 2. d4 {[%clk 0:03:00]}  Bf5 {[%clk 0:02:59]} 3. Nc3 {[%clk 0:03:00]}  Nf6 {[%clk 0:02:59]} 4. Nh4 {[%clk 0:03:01]}  Bg6 {[%clk 0:02:58]} 5. Nxg6 {[%clk 0:02:59]}  hxg6 {[%clk 0:02:59]} 6. e4 {[%clk 0:03:00]}  e5 {[%clk 0:02:59]} 7. Be3 {[%clk 0:02:51]}  exd4 {[%clk 0:02:50]} 8. Qxd4 {[%clk 0:02:51]}  a6 {[%clk 0:02:48]} 9. O-O-O {[%clk 0:02:48]}  Nc6 {[%clk 0:02:49]} 10. Qd2 {[%clk 0:02:48]}  Be7 {[%clk 0:02:48]} 11. f3 {[%clk 0:02:48]}  Qd7 {[%clk 0:02:43]} 12. g4 {[%clk 0:02:35]}  Ne5 {[%clk 0:02:41]} 13. Be2 {[%clk 0:02:34]}  Qc6 {[%clk 0:02:35]} 14. g5 {[%clk 0:02:32]}  Nfd7 {[%clk 0:02:35]} 15. Nd5 {[%clk 0:02:29]}  Nc4 {[%clk 0:02:28]} 16. Bxc4 {[%clk 0:02:02]}  Qxc4 {[%clk 0:02:29]} 17. h4 {[%clk 0:01:54]}  Ne5 {[%clk 0:02:03]} 18. b3 {[%clk 0:01:41]}  Qc6 {[%clk 0:02:01]} 19. f4 {[%clk 0:01:41]}  Nd7 {[%clk 0:01:59]} 20. Bd4 {[%clk 0:01:38]}  Bf8 {[%clk 0:01:56]} 21. Rh3 {[%clk 0:01:37]}  O-O-O {[%clk 0:01:54]} 22. Rc3 {[%clk 0:01:35]}  Nc5 {[%clk 0:01:53]} 23. Bxc5 {[%clk 0:01:35]}  dxc5 {[%clk 0:01:15]} 24. Nb6+ {[%clk 0:01:33]} 1-0


[Site "https://www.chess.com"]